Cogmind - Beta 12 @@@ ROGUE MODE // 2023.03.04 @ 00:30:44 Player: 3.14 Result: Self-destructed Performance ------------- Evolutions (0) 0 Regions Visited (4) 800 Robots Destroyed (8) 40 Value Destroyed (254) 254 Prototype IDs (23) 460 Alien Tech Used (0) 0 Bonus (300) 300 TOTAL SCORE: 1854 Bonus ------- Aligned with FarCom 300 Cogmind --------- Core Integrity 74/250 Matter 300/300 Energy 265/265 System Corruption 0% Temperature Cool (0) Movement Treading (240) Ox1 Location -9/Mines Parts ------- > --- POWER (1) -------- Reinforced Ion Engine > --- PROPULSION (2) --- Light Treads Light Treads > --- UTILITY (2) ------ Heat Sink High-capacity Storage Unit > --- WEAPON (2) ------- Small Laser Light Assault Rifle > --- INVENTORY (20) --- Light Ion Engine Improved Ion Engine Light Treads Light Treads Light Treads Aluminum Leg Aluminum Leg Aluminum Leg Improved Heat Sink High-capacity Matter Pod (200) High-capacity Matter Pod (200) Experimental Sensor Array EM Pulse Gun Medium Laser Medium Laser Small Laser Heavy Assault Rifle AWS/Gauss Mining Laser Peak State ------------ > --- POWER ------------ Reinforced Ion Engine > --- PROPULSION ------- Light Treads Light Treads > --- UTILITY ---------- Heat Sink High-capacity Storage Unit > --- WEAPON ----------- Small Laser Light Assault Rifle > --- INVENTORY -------- Light Ion Engine Improved Ion Engine Light Treads Light Treads Light Treads Heat Sink High-capacity Matter Pod High-capacity Matter Pod Experimental Sensor Array EM Pulse Gun Medium Laser Medium Laser Heavy Assault Rifle AWS/Gauss Mining Laser [Rating: 12] Favorites ----------- Power Light Ion Engine Engine Light Ion Engine Propulsion Light Treads Treads Light Treads Leg Aluminum Leg Utility Heat Sink Device Heat Sink Storage Large Storage Unit Weapon Light Assault Rifle Energy Gun Small Laser Ballistic Gun Light Assault Rifle Build | -11 -10 -10 -10 -9 ------- Run | Jun Mat Min Exi Min Slots Evolved . | . . . . . Power . | . . . . . Propulsion . | . . . . . Utility . | . . . . . Weapon . | . . . . . Parts Attached 10 | . 2 4 2 2 Power 2 | . . . 1 1 Engine 2 | . . . 1 1 Core . | . . . . . Reactor . | . . . . . Propulsion 2 | . . 2 . . Treads 2 | . . 2 . . Leg . | . . . . . Wheel . | . . . . . Hover . | . . . . . Flight . | . . . . . Utility 4 | . 1 1 1 1 Device 2 | . . 1 . 1 Storage 2 | . 1 . 1 . Processor . | . . . . . Hackware . | . . . . . Protection . | . . . . . Artifact . | . . . . . Weapon 2 | . 1 1 . . Energy Gun 2 | . 1 1 . . Energy Cannon . | . . . . . Ballistic Gun . | . . . . . Ballistic Cannon . | . . . . . Launcher . | . . . . . Special Weapon . | . . . . . Impact Weapon . | . . . . . Slashing Weapon . | . . . . . Piercing Weapon . | . . . . . Special Melee Weapon . | . . . . . Unidentified Prototypes . | . . . . . Parts Lost 1 | . . . . 1 Power . | . . . . . Propulsion . | . . . . . Utility 1 | . . . . 1 Weapon . | . . . . . Highest Loss Streak 1 | . . . . 1 To Critical Strikes . | . . . . . Average Slot Usage (%) 96 | . 90 91 100 99 Engine 14 | . 14 14 14 14 Treads 19 | . . 11 28 28 Leg 7 | . 28 16 . . Device 10 | . . 6 14 13 Storage 14 | . 19 14 14 14 Energy Gun 14 | . 14 14 14 14 Ballistic Gun 14 | . 14 14 14 14 Naked Turns . | . . . . . Heaviest Build 53 | 11 31 26 46 53 Greatest Support 40 | 20 20 40 40 40 Greatest Overweight (x) 1 | . 1 1 1 1 Average Overweight (x) . | . . . . 1 Largest Inventory Capacity 20 | . 15 15 20 20 Average Capacity 16 | . 14 15 18 20 Most Carried 20 | . 9 15 17 20 Average Carried 12 | . 7 10 14 16 Final Capacity 20 | 8 15 15 20 20 Final Carried 20 | 6 9 12 15 20 Class Distribution -------------------- 100% | Mutant Dominant Class ---------------- Mutant | -10/Materials Mutant | -10/Mines Mutant | -10/Exiles Mutant | -9/Mines Resources | -11 -10 -10 -10 -9 ----------- Run | Jun Mat Min Exi Min Matter Collected 337 | 176 . 84 20 57 Remotely . | . . . . . Salvage Created 407 | . . 113 . 294 Parts 22 | . . 6 . 16 Haulers Intercepted . | . . . . . Recyclers Shooed . | . . . . . Parts Field Recycled . | . . . . . Retrieved Matter . | . . . . . Parts Self-Destructed . | . . . . . Prevented . | . . . . . Kills | -11 -10 -10 -10 -9 ------- Run | Jun Mat Min Exi Min Combat Hostiles Destroyed 6 | . . 2 . 4 Guns 6 | . . 2 . 4 Classes Destroyed 5 | . . 1 . 4 Tunneler 1 | . . . . 1 Recycler 1 | . . . . 1 Grunt 3 | . . . . 3 Brawler 1 | . . . . 1 Sentry 2 | . . 2 . . Best Kill Streak 3 | . . 2 . 3 Combat Bots Only 2 | . . 2 . 2 Max Kills in Single Turn 1 | . . 1 . 1 Gunslinging . | . . . . . Exploded . | . . . . . Melee . | . . . . . Uniques/NPCs Destroyed . | . . . . . Combat | -11 -10 -10 -10 -9 -------- Run | Jun Mat Min Exi Min Damage Taken 645 | . . 264 . 381 Core 176 | . . 72 . 104 Absorbed by Shields . | . . . . . Core Remaining (%) 100 | 100 . . . . Volleys Fired 30 | . . 8 . 22 Largest 2 | . . 2 . 2 Hottest 60 | . . 60 . 60 Shots Fired 60 | . . 16 . 44 Gun 60 | . . 16 . 44 Cannon . | . . . . . Launcher . | . . . . . Special . | . . . . . Kinetic 30 | . . 8 . 22 Thermal 30 | . . 8 . 22 Explosive . | . . . . . Electromagnetic . | . . . . . Robot Hit Streak 10 | . . 9 . 10 Robot Miss Streak 3 | . . 1 . 3 Penetration Max . | . . . . . Secondary Targets . | . . . . . Shots Hit Robots 42 | . . 14 . 28 Core Hits 20 | . . 7 . 13 Critical Kills . | . . . . . Critical Parts Destroyed . | . . . . . Critical Strikes . | . . . . . Melee Attacks . | . . . . . Impact . | . . . . . Slashing . | . . . . . Piercing . | . . . . . Sneak Attacks . | . . . . . Combat Hostiles . | . . . . . Follow-up Attacks . | . . . . . Damage Inflicted 445 | . . 163 . 282 Guns 421 | . . 139 . 282 Cannons . | . . . . . Explosions . | . . . . . Melee . | . . . . . Ramming 24 | . . 24 . . Kinetic 181 | . . 61 . 120 Thermal 240 | . . 78 . 162 Explosive . | . . . . . Electromagnetic . | . . . . . Impact . | . . . . . Slashing . | . . . . . Piercing . | . . . . . Highest Corruption . | . . . . . Average Corruption . | . . . . . Corruption Purged . | . . . . . Corruption Blocked . | . . . . . Overload Shots . | . . . . . Overflow Damage . | . . . . . Projectiles . | . . . . . Explosions . | . . . . . Melee . | . . . . . Knockbacks 1 | . . 1 . . Impact 1 | . . 1 . . Kinetic . | . . . . . Secondary . | . . . . . Self-Inflicted Damage . | . . . . . Shots . | . . . . . Rammed 6 | . . 6 . . Targets Rammed 8 | . . 8 . . Kicked 2 | . . 2 . . Crushed . | . . . . . Highest Temperature 103 | . . 103 . 52 Average Temperature 33 | . . 56 . 20 Received Heat Transfer 270 | . . 72 . 198 Siege Activations . | . . . . . Robots Corrupted . | . . . . . Combat Hostiles . | . . . . . Parts Fried . | . . . . . Impact Corruptions . | . . . . . Robots Melted . | . . . . . Combat Hostiles . | . . . . . Parts Melted . | . . . . . Heat Transferred 550 | . . 175 . 375 Parts Sabotaged . | . . . . . Parts Stolen . | . . . . . Parts Stripped . | . . . . . Power Chain Reactions . | . . . . . Missiles Intercepted . | . . . . . Alert | -11 -10 -10 -10 -9 ------- Run | Jun Mat Min Exi Min Peak Influence 115 | . 8 58 . 115 Initial 3 | . . 3 . . Average 27 | . 7 12 . 92 Maximum Alert Level . | . . . . . Low Security (%) 100 | . 100 100 . 100 Level 1 . | . . . . . Level 2 . | . . . . . Level 3 . | . . . . . Level 4 . | . . . . . Level 5 . | . . . . . High Security . | . . . . . Max Security . | . . . . . Squads Dispatched . | . . . . . Investigation . | . . . . . Extermination . | . . . . . Reinforcement . | . . . . . Assault . | . . . . . Garrison . | . . . . . Intercept . | . . . . . Searches Triggered . | . . . . . Construction Impeded . | . . . . . Haulers Reinforced . | . . . . . Active Scanning Responses . | . . . . . Cargo Convoy Interrupts . | . . . . . Stealth | -11 -10 -10 -10 -9 --------- Run | Jun Mat Min Exi Min Distress Signals . | . . . . . Communications Jammed . | . . . . . Distress Signals . | . . . . . Times Spotted 7 | . . 2 . 5 Peak Tracking Total 3 | . . 2 . 3 Tactical Retreats . | . . . . . Traps | -11 -10 -10 -10 -9 ------- Run | Jun Mat Min Exi Min Traps Triggered . | . . . . . Indirectly . | . . . . . Trap Hack Attempts . | . . . . . Triggered . | . . . . . Disarmed . | . . . . . Reprogrammed . | . . . . . Reused . | . . . . . Traps Extracted . | . . . . . Installed . | . . . . . Triggered . | . . . . . Machines | -11 -10 -10 -10 -9 ---------- Run | Jun Mat Min Exi Min Machines Disabled . | . . . . . Max in Single Turn . | . . . . . Machines Repaired . | . . . . . Machines Sabotaged . | . . . . . Overloaded Fab Kills . | . . . . . Hacking | -11 -10 -10 -10 -9 --------- Run | Jun Mat Min Exi Min Machines Accessed 3 | . 1 . 2 . Terminals 1 | . 1 . . . Fabricators . | . . . . . Repair Stations . | . . . . . Recycling Units . | . . . . . Scanalyzers . | . . . . . Garrison Access . | . . . . . Total Hacks 5 | . 3 . 2 . Successful 3 | . 1 . 2 . Failed 2 | . 2 . . . Catastrophic . | . . . . . Database Lockouts . | . . . . . Manual 4 | . 3 . 1 . Terminals 3 | . 3 . . . Fabricators . | . . . . . Repair Stations . | . . . . . Recycling Units . | . . . . . Scanalyzers . | . . . . . Garrison Access . | . . . . . Terminal Hacks 3 | . 1 . 2 . Record 1 | . . . 1 . Branch Access Points 1 | . 1 . . . EX-Prototype ID Bank 1 | . . . 1 . Fabricator Hacks . | . . . . . Repair Station Hacks . | . . . . . Recycling Unit Hacks . | . . . . . Scanalyzer . | . . . . . Garrison Access Hacks . | . . . . . Unauthorized Hacks . | . . . . . Terminals . | . . . . . Fabricators . | . . . . . Repair Stations . | . . . . . Recycling Units . | . . . . . Scanalyzers . | . . . . . Garrison Access . | . . . . . Data Cores Recovered . | . . . . . Used . | . . . . . Hacking Detections 1 | . 1 . . . Full Trace Events . | . . . . . Feedback Events . | . . . . . Feedback Blocked . | . . . . . Robot Schematics Acquired . | . . . . . Robots Built . | . . . . . Authchips . | . . . . . Time . | . . . . . Total Robot Build Rating . | . . . . . Part Schematics Acquired . | . . . . . Parts Built . | . . . . . Authchips . | . . . . . Time . | . . . . . Total Part Build Rating . | . . . . . Parts Repaired . | . . . . . Time . | . . . . . Parts Recycled . | . . . . . Recycled Matter . | . . . . . Retrieved Matter . | . . . . . Retrieved Components . | . . . . . Parts Scanalyzed . | . . . . . Part Schematics Acquired . | . . . . . Parts Damaged . | . . . . . Bothacking | -11 -10 -10 -10 -9 ------------ Run | Jun Mat Min Exi Min Used RIF Installer . | . . . . . Robots Hacked . | . . . . . Non-combat . | . . . . . Combat . | . . . . . Robot Hacks Applied . | . . . . . Relay Couplers Released . | . . . . . Fabnet Peak Effective % . | . . . . . Robots Rewired . | . . . . . Allies Hacked . | . . . . . Hacks Repelled . | . . . . . Allies | -11 -10 -10 -10 -9 -------- Run | Jun Mat Min Exi Min Total Allies . | . . . . . Largest Group . | . . . . . Highest-Rated Group . | . . . . . Highest-Rated Ally . | . . . . . Total Orders . | . . . . . Ally Attacks . | . . . . . Total Damage . | . . . . . Kills . | . . . . . Allies Corrupted . | . . . . . Allies Melted . | . . . . . Intel | -11 -10 -10 -10 -9 ------- Run | Jun Mat Min Exi Min Robot Analysis Total . | . . . . . Derelict Logs Recovered 3 | . . 2 . 1 Drone Launches . | . . . . . Drone Recoveries . | . . . . . Exploration | -11 -10 -10 -10 -9 ------------- Run | Jun Mat Min Exi Min Turns Passed 1698 | . 137 584 811 166 Spaces Moved 809 | 1 74 301 393 40 Core . | . . . . . Treads 572 | . . 139 393 40 Legs 237 | 1 74 162 . . Wheels . | . . . . . Hover . | . . . . . Flight . | . . . . . Fastest Speed 120 | 120 120 160 160 240 Average Speed 193 | 120 176 176 204 240 Slowest Speed 240 | 120 190 190 240 240 Overloaded Moves . | . . . . . Propulsion Burnouts . | . . . . . Robots Hopped . | . . . . . Cave-ins Triggered . | . . . . . Exploration Rate (%) 28 | 2 13 48 66 13 Regions Visited 4 Branch Regions 3 Pre-discovered Areas 4 | . . 1 1 2 Known Exits Taken 1 | . 1 . . . Unknown Exits Taken 3 | 1 . 1 1 . Scrap Searched . | . . . . . Spaces Dug . | . . . . . Terrain Destroyed . | . . . . . Melee . | . . . . . Projectile . | . . . . . AOE . | . . . . . Terrain Rammed . | . . . . . Walls Destroyed . | . . . . . Machines Disabled . | . . . . . Actions | -11 -10 -10 -10 -9 --------- Run | Jun Mat Min Exi Min Total 889 | . 80 337 403 69 Wait 6 | . 1 5 . . Move 805 | . 73 300 392 40 Hop . | . . . . . Pick Up 20 | . 3 7 5 5 Fast Attach 2 | . 1 1 . . Attach 3 | . . 2 . 1 Detach . | . . . . . Swap 5 | . 1 1 2 1 Drop 10 | . 1 5 4 . Fire 30 | . . 8 . 22 Melee . | . . . . . Ram . | . . . . . Kick 2 | . . 2 . . Crush 6 | . . 6 . . Escape Stasis . | . . . . . Rewire . | . . . . . Trap . | . . . . . Miscellaneous . | . . . . . Route ------- -11/Junkyard -10/Materials (discovered 2 exits: *Min x2) -10/Mines (discovered 2 exits: [*Mat] / *Exi) -10/Exiles (discovered 2 exits: [*Min x2]) -9/Mines History --------- Turn | Location | Event 1 | -11/Junkyard | Discovered new exit (range 0) 1 | -11/Junkyard | Entered Materials 9 | -10/Materials | Identified exit to Mines 138 | -10/Materials | Entered Mines 149 | -10/Mines | Met a Derelict bent on vengeance 315 | -10/Mines | Build established: Mutant 376 | -10/Mines | Learned 4 Materials zone layouts 505 | -10/Mines | Discovered new exit (range 9) 588 | -10/Mines | Learned location of Mines (-9) 702 | -10/Mines | Found a damaged Exp. Sensor Array with a note attached 705 | -10/Mines | Found Prototype Device 714 | -10/Mines | Deemed a non-threat by the Exiles lab entrance 714 | -10/Mines | Discovered new exit (range 5) 722 | -10/Mines | Entered Exiles 743 | -10/Exiles | Discovered new exit (range 15) 766 | -10/Exiles | Met 8R-AWN 790 | -10/Exiles | Met EX-HEX 941 | -10/Exiles | Met EX-DEC 947 | -10/Exiles | Learned location of Zion (-6) 1188 | -10/Exiles | Met EX-BIN 1222 | -10/Exiles | Aligned with FarCom system 1225 | -10/Exiles | Given EX-Vault access code 1282 | -10/Exiles | Opened EX-Vault 1301 | -10/Exiles | Found AWS/Gauss 1353 | -10/Exiles | Warned to stay clear of 0b10 Research branches 1514 | -10/Exiles | Discovered new exit (range 10) 1533 | -10/Exiles | Left Exiles lab with AWS/Gauss 1533 | -10/Exiles | Entered Mines 1557 | -9/Mines | Learned location of Storage (-9) 1580 | -9/Mines | Core integrity fell below 50% 1699 | -9/Mines | Self-destructed Last Messages --------------- 01628_ K-01 Serf collects debris. 01634_ Acquired Aluminum Leg. 01636_ K-01 Serf collects debris. 01639_ Acquired Imp. Heat Sink. 01640_ K-01 Serf collects debris. 01650_ Acquired Sml. Laser. 01651_ Acquired derelict log, extracted data. World map confirmed: -9/Storage. 01654_ K-01 Serf collects debris. 01658_ Acquired Aluminum Leg. 01661_ K-01 Serf collects debris. 01662_ Acquired Aluminum Leg. 01665_ K-01 Serf collects debris. 01669_ R-06 Scavenger collects Seismic Detector. 01672_ K-01 Serf collects debris. 01673_ R-06 Scavenger collects Wheel. 01676_ K-01 Serf collects debris. 01676_ R-06 Scavenger collects Wheel. 01679_ R-06 Scavenger collects Lgt. Ion Engine. 01680_ K-01 Serf collects debris. Map ----- +----------------------------------------------------+ | ???????????????????? #??????????? | | ????????????????????? ??????????? | | ????????????????????? ??????????? | | ????????????????????? #??????????? | | ?????????????????????# #??????????? | | ?????????????????????# #??????????? | | ?????????????????????# #??????????? | | ?????????????????????# #??????????? | | ?????????????????????# #??????????? | | ?????????????????????#% #??????????? | | ????????????????????## #??????????? | | ???????????????????##% !#??????????? | | ??????????????????##! % ##?????????? | | ?????????????????## %*= ##????????? | | ????????????????## = #????????? | | ????????????????# #????????? | | ??? ???????????##% ##????????? | | ?# ## ##### ##?????????? | | ?# #??????????? | | ? % ##?????????? | | ? ####### %! #####?????? | | ???????????????## = ##????? | | ????????????????## #### ##???? | | ?????????????????# #??## #???? | | ?????????????????# #???# #???? | | ????????????????? ???# @k ##???? | | ????????????????? ???##k ##????? | | ???????????????? ???# ##?????? | | ???????????????? ??? #??????? | | ????????????????# ??? ??????? | | ????????????????# #??# #?????? | | ????????????????## ##??## ?????? | | ??????????????????###?????# #????? | | ???????????????????????????# #????? | | ????????????????????????????###????? | | ???????????????????????????????????? | | ???????????????????????????????????? | | ???????????????????????????????????? | | ???????????????????????????????????? | | ???????????????????????????????????? | | ???????????????????????????????????? | | ???????????????????????????????????? | | ???????????????????????????????????? | | ???????????????????????????????????? | | ???????????????????????????????????? | | ???????????????????????????????????? | | ???????????????????????????????????? | | ???????????????????????????????????? | | ???????????????????????????????????? | | ???????????????????????????????????? | +----------------------------------------------------+ Best States ------------- Heat Dissipation 35 Energy Generation 12 Energy Capacity 265 Matter Stores 300 Matter Capacity 300 Sight Range 16 Terrain Scan Density 10 Evasion (%) 55 Recoil Reduction 2 Item Schematics ----------------- None Robot Schematics ------------------ None Fabricated ------------ Nothing Alien Tech Used ----------------- None Achievements -------------- None Challenges ------------ None Game ------ Seed StormOpticalGun Manual? 0 Play Time 00:05:35 Cumulative 811.4 hours Start 2023.03.04 @ 00:25:55 End 2023.03.04 @ 00:30:44 Sessions 1 Manual Loads 0 Difficulty Rogue Special Mode None Game No. 1233 Rogue 1233 Adventurer 0 Explorer 0 Win Type - Total 77 Types 46/1/13/12/4/0/0/1/0 Lore% 91 Gallery% 91 Achievement% 85 Wizard Run 0 Options --------- ASCII 1 Keyboard 0 Movement Numpad Keybinds 0 Fullscreen 0 Font 14/SmallcapsGlow Map View 76x50 Tactical HUD 1 Map Filters NONE Filters NONE Steam 1 RUN: ae52f5da-6c2e-4502-bbad-f2782115898f